bitfinex/quotes_BTCUSD_20240617
["timestamp","ask_amount","ask_price","bid_price","bid_amount"]
[1718587899689,0.10485,66445.0,66444.0,0.2969]
[1718587899902,0.26135,66445.0,66444.0,0.2969]
[1718587900125,0.11085,66445.0,66444.0,0.2969]
[1718587900340,0.10085,66445.0,66444.0,0.2969]
[1718587900546,0.55235,66445.0,66444.0,0.2969]
[1718587900729,0.55635,66445.0,66444.0,0.1756]
[1718587900960,0.25135,66445.0,66444.0,0.1756]
[1718587901169,0.10085,66445.0,66444.0,0.1756]
[1718587901428,0.00085,66445.0,66444.0,0.21160811]
[1718587902114,0.00085,66445.0,66444.0,0.20360811]
[1718587902558,0.00085,66445.0,66444.0,0.20660811]
[1718587902986,0.00085,66445.0,66444.0,0.21378923]
[1718587903207,0.00085,66445.0,66444.0,0.36429123]
[1718587903428,0.00085,66445.0,66444.0,0.66829623]
[1718587903645,0.00085,66445.0,66444.0,0.37229123]
[1718587903866,0.00085,66445.0,66444.0,0.22178923]
[1718587904084,0.00085,66445.0,66444.0,0.21678923]
[1718587904291,0.00085,66445.0,66444.0,0.22178923]
[1718587904510,0.00085,66445.0,66444.0,0.37229123]
[1718587904901,0.00085,66445.0,66444.0,0.66311511]
[1718587905101,0.00085,66445.0,66444.0,0.52437902]
[1718587905355,0.00085,66445.0,66444.0,0.37387702]
[1718587906394,0.00085,66445.0,66444.0,0.1806]
[1718587906618,0.05066886,66445.0,66444.0,0.031]
[1718587907016,0.00085,66445.0,66444.0,0.031]
[1718587908183,0.05066886,66445.0,66444.0,0.031]
[1718587908388,0.00085,66445.0,66444.0,0.031]
[1718587908829,0.00085,66445.0,66444.0,1.01526922]
[1718587909116,0.00085,66445.0,66444.0,0.98966548]
[1718587909463,0.00085,66445.0,66444.0,1.41877048]
[1718587912524,0.00085,66445.0,66444.0,1.11776548]
[1718587912786,0.00085,66445.0,66444.0,1.41877048]
[1718587912904,0.00085,66445.0,66444.0,1.11776548]
[1718587913108,0.00085,66445.0,66444.0,1.24356548]
[1718587914228,0.00085,66445.0,66444.0,1.54457048]
[1718587914359,0.00085,66445.0,66444.0,0.79205848]
[1718587914773,0.00085,66445.0,66444.0,1.54457048]
[1718587914972,0.00085,66445.0,66444.0,1.54456534]
[1718587915811,0.00085,66445.0,66444.0,1.24356034]
[1718587916132,0.00085,66445.0,66444.0,1.18247003]
[1718587917713,0.00085,66445.0,66444.0,1.48347503]
[1718587917912,0.00085,66445.0,66444.0,1.18247003]
[1718587919339,0.00085,66445.0,66444.0,1.48347503]
[1718587920698,0.00085,66445.0,66444.0,1.18247003]
[1718587920848,0.00085,66445.0,66444.0,1.63556282]
[1718587921255,0.00085,66445.0,66444.0,1.33455782]
[1718587921440,0.00085,66445.0,66444.0,1.63556282]
[1718587931877,0.00085,66445.0,66444.0,1.93656782]
[1718587932087,0.00085,66445.0,66444.0,2.43656782]
[1718587932298,0.00085,66445.0,66444.0,2.13556282]
[1718587932734,0.00085,66445.0,66444.0,2.13056282]
[1718587932958,0.00085,66445.0,66444.0,2.3119126]
[1718587933367,0.00085,66445.0,66444.0,2.6099176]
[1718587933569,0.00085,66445.0,66444.0,2.42856782]
[1718587934432,0.00185,66445.0,66444.0,2.43756782]
[1718587934646,0.00185,66445.0,66444.0,2.61705607]
[1718587934855,0.00285,66445.0,66444.0,2.62505607]
[1718587935285,0.00285,66445.0,66444.0,2.71915182]
[1718587935468,0.00285,66445.0,66444.0,2.62505607]
[1718587935916,0.00285,66445.0,66444.0,2.44556782]
[1718587937219,0.00285,66445.0,66444.0,2.46363699]
[1718587937400,0.00285,66445.0,66444.0,2.70140379]
[1718587938367,0.00285,66445.0,66444.0,2.71947012]
[1718587938659,0.00285,66445.0,66444.0,2.70140379]
[1718587939078,0.00285,66445.0,66444.0,2.80140379]
[1718587941116,0.00285,66445.0,66444.0,2.50039879]
[1718587941531,0.00285,66445.0,66444.0,2.24456282]
[1718587941800,0.00285,66445.0,66444.0,2.40425538]
[1718587941975,0.00285,66445.0,66444.0,2.49835204]
[1718587942176,0.00285,66445.0,66444.0,2.63966448]
[1718587943170,0.00285,66445.0,66444.0,2.21285948]
[1718587943386,0.00285,66445.0,66444.0,2.11876282]
[1718587943592,0.00285,66445.0,66444.0,2.46996782]
[1718587944192,0.00285,66445.0,66444.0,2.56406519]
[1718587945122,0.00285,66445.0,66444.0,2.74333582]
[1718587946242,0.00285,66445.0,66444.0,2.74269971]
[1718587946389,0.00285,66445.0,66444.0,2.26306019]
[1718587946592,0.00285,66445.0,66444.0,2.32549868]
[1718587947037,0.00285,66445.0,66444.0,2.23140131]
[1718587949539,0.00285,66445.0,66444.0,2.48168982]
[1718587949758,0.00285,66445.0,66444.0,2.23158245]
[1718587951098,0.00285,66445.0,66444.0,0.38960152]
[1718587951299,0.12235,66445.0,66444.0,0.36660152]
[1718587951521,0.12235,66445.0,66444.0,0.4066204]
[1718587952124,0.30821277,66445.0,66444.0,0.017]
[1718587952343,0.80953163,66445.0,66444.0,0.017]
[1718587952543,1.26583163,66445.0,66444.0,0.017]
[1718587953487,1.56683163,66445.0,66444.0,0.017]
[1718587953708,1.56583163,66445.0,66444.0,0.009]
[1718587954141,1.58583163,66445.0,66444.0,0.009]
[1718587954335,0.1,66439.0,66434.0,0.00018119]
[1718587954571,0.1,66436.0,66434.0,0.15226898]
[1718587954772,0.1,66435.0,66434.0,0.15226898]
[1718587955202,0.1,66435.0,66434.0,0.18356759]
[1718587955637,0.1,66435.0,66434.0,0.20656759]
[1718587956023,0.1,66435.0,66434.0,0.17526898]
[1718587956223,0.10981888,66435.0,66434.0,0.17526898]
[1718587956448,0.36334389,66438.0,66434.0,0.18926898]
[1718587956734,0.04981886,66437.0,66435.0,0.023]
[1718587956927,0.05081886,66439.0,66435.0,0.17508779]
[1718587957159,0.07604389,66438.0,66435.0,0.23769078]
[1718587957525,0.07604389,66438.0,66436.0,0.01018112]
[1718587957728,0.07604389,66438.0,66437.0,0.023]
[1718587958135,0.07604389,66438.0,66436.0,0.023]
[1718587958604,0.17604389,66438.0,66436.0,0.023]
[1718587958915,0.1,66437.0,66436.0,0.028]
[1718587959874,0.10981888,66437.0,66436.0,0.028]
[1718587960087,0.10981888,66437.0,66436.0,0.023]
[1718587960292,0.10981888,66437.0,66436.0,0.028]
[1718587960626,0.07604389,66438.0,66436.0,0.028]
[1718587961350,0.07604389,66438.0,66436.0,0.034]
[1718587961503,0.07604389,66438.0,66436.0,0.029]
[1718587961707,0.17604389,66438.0,66436.0,0.029]
[1718587961906,0.17604389,66438.0,66436.0,0.034]
[1718587962139,0.1,66437.0,66436.0,0.034]
[1718587962549,0.10981888,66437.0,66436.0,0.034]
[1718587963019,0.10981888,66437.0,66436.0,0.028]
[1718587963228,0.31015574,66437.0,66436.0,0.023]
[1718587963444,1.04511174,66437.0,66436.0,0.023]
[1718587963676,1.04511174,66437.0,66436.0,0.028]
[1718587963677,1.19562974,66437.0,66436.0,0.028]
[1718587964129,1.19562974,66437.0,66436.0,0.023]
[1718587964349,0.2834,66428.0,66424.0,0.00085]
[1718587964535,0.2834,66428.0,66425.0,0.15208779]
[1718587965282,0.1,66427.0,66425.0,0.15208779]
[1718587965487,0.1,66427.0,66426.0,0.023]
[1718587965692,0.43394,66428.0,66426.0,0.17508779]
[1718587965896,0.2834,66428.0,66427.0,0.15208779]
[1718587966098,0.28321881,66428.0,66427.0,0.1967917]
[1718587966931,0.38321881,66428.0,66427.0,0.1967917]
[1718587967142,0.38321881,66428.0,66427.0,0.2077917]
[1718587967143,0.28321881,66428.0,66427.0,0.2077917]
[1718587967339,0.11931881,66428.0,66427.0,0.2077917]
[1718587968164,0.04981886,66433.0,66427.0,0.2077917]
[1718587968343,0.14981886,66433.0,66428.0,0.08756128]
[1718587968547,0.14981886,66433.0,66429.0,0.15208779]
[1718587968771,0.14981886,66433.0,66430.0,0.023]
[1718587969692,0.04981886,66434.0,66431.0,0.150531]
[1718587969897,0.04981886,66434.0,66432.0,0.023]
[1718587970097,0.14981886,66433.0,66432.0,0.023]
[1718587970264,0.15963774,66433.0,66432.0,0.023]
[1718587970463,0.1,66431.0,66430.0,0.023]
[1718587970674,0.1,66431.0,66430.0,0.03]
[1718587970884,0.1,66431.0,66430.0,0.08592341]
[1718587971078,0.1,66431.0,66430.0,0.07892341]
[1718587971915,0.10981888,66431.0,66430.0,0.023]
[1718587972163,0.10981888,66431.0,66430.0,0.031]
[1718587973382,0.10981888,66431.0,66430.0,0.038]
[1718587974062,0.26035088,66431.0,66430.0,0.038]
[1718587974610,0.26001888,66431.0,66430.0,0.038]
[1718587975503,1.01267888,66431.0,66430.0,0.0883]
[1718587975616,0.71161488,66431.0,66430.0,0.0883]
[1718587975821,0.41055088,66431.0,66430.0,0.0883]
[1718587976217,0.26001888,66431.0,66430.0,0.0883]
[1718587976661,0.2502,66431.0,66430.0,0.0883]
[1718587976864,0.26001888,66431.0,66430.0,0.0883]
[1718587977353,0.41055088,66431.0,66430.0,0.0883]
[1718587977748,0.1,66432.0,66430.0,0.0883]
[1718587977951,0.1,66432.0,66430.0,0.11233878]
[1718587978303,0.1,66431.0,66430.0,0.11233878]
[1718587979015,0.1,66431.0,66430.0,0.09733878]
[1718587979226,0.10981888,66431.0,66430.0,0.10533878]
[1718587979431,0.26035088,66431.0,66430.0,0.11233878]
[1718587979651,0.26035088,66431.0,66430.0,0.10433878]
[1718587979856,0.1,66432.0,66430.0,0.09733878]
[1718587980081,0.1,66431.0,66430.0,0.10533878]
[1718587980282,0.1,66431.0,66430.0,0.11233878]
[1718587980488,0.14981886,66433.0,66430.0,0.11233878]
[1718587980708,0.1,66432.0,66431.0,0.02746077]
[1718587980912,0.1,66432.0,66431.0,0.05046077]
[1718587981120,0.2301,66435.0,66431.0,0.05046077]
[1718587981314,0.10981888,66435.0,66434.0,0.0503]
[1718587981517,0.1,66435.0,66434.0,0.0733]
[1718587981719,0.10981888,66435.0,66434.0,0.0733]
[1718587982798,0.1,66435.0,66434.0,0.0763]
[1718587983562,0.1,66435.0,66434.0,0.0783]
[1718587984202,0.1591,66439.0,66434.0,0.26863657]
[1718587984203,0.04981886,66439.0,66434.0,0.26863657]
[1718587984510,0.14981886,66440.0,66438.0,0.0503]
[1718587984674,0.14981886,66440.0,66439.0,0.023]
[1718587984854,0.14981886,66440.0,66439.0,0.08032407]
[1718587985474,0.150506,66443.0,66439.0,0.08032407]
[1718587985475,0.04981886,66442.0,66439.0,0.08032407]
[1718587985676,0.04981886,66442.0,66441.0,0.0503]
[1718587985942,0.04981886,66442.0,66441.0,0.0733]
[1718587986061,0.04981886,66442.0,66441.0,0.13381771]
[1718587986262,0.04981886,66442.0,66441.0,0.0733]
[1718587986263,0.14981886,66442.0,66441.0,0.0733]
[1718587986518,0.15963774,66442.0,66441.0,0.0733]
[1718587986974,0.16163774,66442.0,66441.0,0.0733]
[1718587987630,0.05181886,66442.0,66441.0,0.0733]
[1718587988209,0.007,66442.0,66441.0,0.38768779]
[1718587988413,0.007,66442.0,66441.0,0.5928791]
[1718587988631,0.00085,66445.0,66442.0,0.01018112]
[1718587988790,0.00085,66445.0,66444.0,0.0503]
[1718587988997,0.00085,66445.0,66444.0,0.22538779]
[1718587989591,0.00085,66445.0,66444.0,0.34378779]
[1718587989856,0.00085,66445.0,66444.0,0.40589721]
[1718587990064,0.00085,66445.0,66444.0,0.28749721]
[1718587990473,0.00085,66445.0,66444.0,0.28849721]
[1718587991808,0.00085,66445.0,66444.0,0.29049721]
[1718587992019,0.00085,66445.0,66444.0,0.28849721]
[1718587992292,0.00085,66445.0,66444.0,0.22538779]
[1718587992493,0.10085,66445.0,66444.0,0.17808779]
[1718587992711,0.11066888,66445.0,66444.0,0.18008779]
[1718587992923,0.11066888,66445.0,66444.0,0.23038779]
[1718587993168,1.26793163,66445.0,66444.0,0.028]
[1718587993625,1.58893163,66445.0,66444.0,0.005]
[1718587994069,1.26793163,66445.0,66444.0,0.005]
[1718587994291,1.26793163,66445.0,66444.0,0.003]
[1718587994739,1.26793163,66445.0,66437.0,0.0503]
[1718587994740,0.15963774,66438.0,66437.0,0.0503]
[1718587995520,0.14981886,66438.0,66437.0,0.0733]
[1718587996337,0.04981886,66438.0,66437.0,0.0753]
[1718587996600,0.04981886,66438.0,66437.0,0.0783]
[1718587996819,0.14981886,66438.0,66437.0,0.08714811]
[1718587997488,0.15963774,66438.0,66437.0,0.08714811]
[1718587998280,0.04981886,66438.0,66437.0,0.08714811]
[1718587998509,0.50561275,66445.0,66439.0,0.150513]
[1718587998709,0.50561275,66445.0,66444.0,0.0503]
[1718587998885,0.07689389,66445.0,66444.0,0.0503]
[1718587999088,0.00085,66445.0,66444.0,0.22538779]
[1718588000367,0.00585,66445.0,66444.0,0.22538779]
[1718588000614,0.00585,66445.0,66444.0,0.17708779]
[1718588000823,0.00585,66445.0,66444.0,0.2665343]
[1718588001434,0.00585,66445.0,66444.0,0.27671542]
[1718588001606,0.00085,66445.0,66444.0,1.01082242]
[1718588001847,0.00085,66445.0,66444.0,1.31482742]
[1718588002024,0.00085,66445.0,66444.0,0.51201542]
[1718588002160,0.00085,66445.0,66444.0,0.68650829]
[1718588002421,0.00085,66445.0,66444.0,0.98751329]
[1718588002621,0.00085,66445.0,66444.0,0.68650829]
[1718588002865,0.00085,66445.0,66444.0,0.83501029]
[1718588003075,0.00085,66445.0,66444.0,1.13301529]
[1718588003281,0.00085,66445.0,66444.0,1.44802029]
[1718588003498,0.00085,66445.0,66444.0,1.46202029]
[1718588003725,0.00085,66445.0,66444.0,1.44802029]
[1718588003936,0.00085,66445.0,66444.0,1.46202029]
[1718588004358,0.00085,66445.0,66444.0,1.46146472]
[1718588004596,0.00024154,66445.0,66444.0,1.46146472]
[1718588004819,0.00024154,66445.0,66444.0,1.44746472]
[1718588005251,0.00024154,66445.0,66444.0,1.46146472]
[1718588005475,0.00024154,66445.0,66444.0,1.44746472]
[1718588005701,0.00024154,66445.0,66444.0,1.44646472]
[1718588005924,0.00024154,66445.0,66444.0,1.46046472]
[1718588006340,0.00024154,66445.0,66444.0,1.44740171]
[1718588006549,0.00024154,66445.0,66444.0,1.46140171]
[1718588007251,0.00024154,66445.0,66444.0,0.70888971]
[1718588008564,0.00024154,66445.0,66444.0,1.16039671]
[1718588008799,0.00024154,66445.0,66444.0,1.46140171]
[1718588009437,0.00024154,66445.0,66444.0,1.44740171]
[1718588009667,0.00024154,66445.0,66444.0,1.74840671]
[1718588010120,0.00024154,66445.0,66444.0,1.71210671]
[1718588010342,0.00024154,66445.0,66444.0,1.44740171]
[1718588010587,0.00024154,66445.0,66444.0,1.46140171]
[1718588011433,0.00024154,66445.0,66444.0,1.44740171]
[1718588012294,0.00024154,66445.0,66444.0,1.46140171]
[1718588012716,0.00024154,66445.0,66444.0,1.76240671]
[1718588013988,0.00024154,66445.0,66444.0,2.06359285]
[1718588014189,0.00024154,66445.0,66444.0,2.16359285]
[1718588014405,0.00024154,66445.0,66444.0,1.86258785]
[1718588015120,0.00024154,66445.0,66444.0,1.84858785]
[1718588015357,0.00024154,66445.0,66444.0,1.86258785]
[1718588015781,0.00024154,66445.0,66444.0,1.84858785]
[1718588016010,0.00024154,66445.0,66444.0,1.86240671]
[1718588016245,0.00024154,66445.0,66444.0,0.6154059]
[1718588016461,0.00024154,66445.0,66444.0,0.88692719]
[1718588016908,0.00024154,66445.0,66444.0,0.40104407]
[1718588017121,0.00024154,66445.0,66444.0,0.18002478]
[1718588017548,0.26056042,66445.0,66444.0,0.18002478]
[1718588017792,0.28534154,66445.0,66444.0,0.23032478]
[1718588017994,0.28534154,66445.0,66444.0,0.25437537]
[1718588018206,0.28534154,66445.0,66444.0,0.24037537]
[1718588018407,0.28534154,66445.0,66444.0,0.24937537]
[1718588018823,0.28534154,66445.0,66444.0,0.25737537]
[1718588019041,0.28534154,66445.0,66444.0,0.26937537]
[1718588019659,0.00024154,66445.0,66444.0,0.56856149]
[1718588019859,0.00024154,66445.0,66444.0,1.00846349]
[1718588020060,0.00024154,66445.0,66444.0,0.27455649]
[1718588020263,0.00024154,66445.0,66444.0,0.26437537]
[1718588020464,0.00024154,66445.0,66444.0,0.27455649]
[1718588020739,0.00024154,66445.0,66444.0,0.42505849]
[1718588022075,0.00024154,66445.0,66444.0,0.54743845]
[1718588022692,0.00024154,66445.0,66444.0,0.33645533]
[1718588022943,0.00024154,66445.0,66444.0,0.26437537]
[1718588025035,0.00024154,66445.0,66444.0,0.24032478]
[1718588025329,0.00024154,66445.0,66444.0,0.36305648]
[1718588025532,0.10024154,66445.0,66444.0,0.31275648]
[1718588025742,0.10024154,66445.0,66444.0,0.24032478]
[1718588026164,0.00024154,66445.0,66444.0,0.24032478]
[1718588026484,0.10024154,66445.0,66444.0,0.24032478]
[1718588027573,0.00024154,66445.0,66444.0,0.24032478]
[1718588028309,0.00024154,66445.0,66444.0,0.36326945]
[1718588028942,0.00024154,66445.0,66444.0,0.363256]
[1718588029143,0.10024154,66445.0,66444.0,0.363256]
[1718588032021,0.10024154,66445.0,66444.0,0.24032478]
[1718588032686,0.10024154,66445.0,66444.0,0.40244498]
[1718588033113,0.10024154,66445.0,66444.0,0.3633615]
[1718588033541,0.10024154,66445.0,66444.0,0.36350023]
[1718588033767,0.10024154,66445.0,66444.0,0.24032478]
[1718588033985,0.10024154,66445.0,66444.0,0.36369457]
[1718588034459,0.10024154,66445.0,66444.0,0.24032478]
[1718588034693,0.00024154,66445.0,66444.0,0.24032478]
[1718588035554,0.10024154,66445.0,66444.0,0.24032478]
[1718588036220,0.10024154,66445.0,66444.0,0.36382889]
[1718588036441,0.25074154,66445.0,66444.0,0.31352889]
[1718588036667,0.11006042,66445.0,66444.0,0.19002478]
[1718588037111,0.26056042,66445.0,66444.0,0.24032478]
[1718588037340,0.11006042,66445.0,66444.0,0.24032478]
[1718588038226,0.10024154,66445.0,66444.0,0.24032478]
[1718588039652,0.00024154,66445.0,66444.0,0.26435726]
[1718588040341,0.00024154,66445.0,66444.0,0.38862082]
[1718588041382,0.00024154,66445.0,66444.0,0.53912282]
[1718588041584,0.00024154,66445.0,66444.0,0.38862082]
[1718588042577,0.00024154,66445.0,66444.0,0.39880194]
[1718588043441,0.00024154,66445.0,66444.0,1.12740894]
[1718588043640,0.00024154,66445.0,66444.0,1.72941894]
[1718588045465,0.00024154,66445.0,66444.0,1.42841394]
[1718588047081,0.00024154,66445.0,66444.0,1.72941894]
[1718588049220,0.00024154,66445.0,66444.0,1.42841394]
[1718588049969,0.00024154,66445.0,66444.0,1.12740894]
[1718588050123,0.00024154,66445.0,66444.0,0.52527146]
[1718588050322,0.00024154,66445.0,66444.0,0.82627646]
[1718588050727,0.00024154,66445.0,66444.0,0.82712646]
[1718588051714,0.00024154,66445.0,66444.0,1.12813146]
[1718588051916,0.00024154,66445.0,66444.0,1.28021925]
[1718588053789,0.00024154,66445.0,66444.0,1.81832425]
[1718588054015,0.00024154,66445.0,66444.0,1.86862425]
[1718588054657,0.00024154,66445.0,66444.0,1.86062425]
[1718588054864,0.00024154,66445.0,66444.0,1.96062425]
[1718588055073,0.00024154,66445.0,66444.0,1.97462425]
[1718588055666,0.00024154,66445.0,66444.0,1.96762425]
[1718588055877,0.00024154,66445.0,66444.0,1.98162425]
[1718588056216,0.00024154,66445.0,66444.0,1.98181105]
[1718588061306,0.00024154,66445.0,66444.0,1.67062493]
[1718588061514,0.12744154,66445.0,66444.0,0.30532514]
[1718588061716,0.20348543,66445.0,66444.0,0.35562514]
[1718588061938,0.20348543,66445.0,66444.0,0.23136158]
[1718588062268,0.20348543,66445.0,66444.0,0.3756553]
[1718588062819,0.20348543,66445.0,66444.0,0.3616553]
[1718588063020,0.20348543,66445.0,66444.0,0.3846553]
[1718588063239,0.20348543,66445.0,66444.0,0.3966553]
[1718588063645,0.20348543,66445.0,66444.0,0.3846553]
[1718588064251,0.20348543,66445.0,66444.0,0.3706553]
[1718588064723,0.20348543,66445.0,66444.0,0.3836553]
[1718588064934,0.20348543,66445.0,66444.0,0.3706553]
[1718588065263,0.20348543,66445.0,66444.0,0.3876553]
[1718588066594,0.00024154,66445.0,66444.0,0.3876553]
[1718588066751,0.00024154,66445.0,66444.0,1.01054342]
[1718588067366,0.00024154,66445.0,66444.0,1.31154842]
[1718588069279,0.00024154,66445.0,66444.0,1.61255342]
[1718588069410,0.00024154,66445.0,66444.0,1.31154842]
[1718588070532,0.00024154,66445.0,66444.0,1.73885342]
[1718588071561,0.00024154,66445.0,66444.0,1.43784842]
[1718588073397,0.00024154,66445.0,66444.0,1.43690757]
[1718588073603,0.00024154,66445.0,66444.0,1.73791257]
[1718588074235,0.00024154,66445.0,66444.0,1.47009877]
[1718588075303,0.00024154,66445.0,66444.0,1.56419626]
[1718588075732,0.00024154,66445.0,66444.0,1.56459082]
[1718588075919,0.00024154,66445.0,66444.0,1.42019333]
[1718588076126,0.00024154,66445.0,66444.0,1.47049333]
[1718588076801,0.00024154,66445.0,66444.0,1.42019333]
[1718588077069,0.00024154,66445.0,66444.0,1.47049333]
[1718588078655,0.00024154,66445.0,66444.0,1.4878277]
[1718588079901,0.00024154,66445.0,66444.0,1.58192573]
[1718588080285,0.00024154,66445.0,66444.0,1.4878277]
[1718588081076,0.00024154,66445.0,66444.0,1.58192577]
[1718588085690,0.00024154,66445.0,66444.0,1.62701439]
[1718588088974,0.00024154,66445.0,66444.0,1.88293077]
[1718588089178,0.00024154,66445.0,66444.0,1.74955871]
[1718588089382,0.00024154,66445.0,66444.0,2.05056371]
[1718588090447,0.00024154,66445.0,66444.0,2.0505841]
[1718588092490,0.00024154,66445.0,66444.0,1.7495791]
[1718588092848,0.00024154,66445.0,66444.0,2.0505841]
[1718588093058,0.00024154,66445.0,66444.0,1.68192577]
[1718588093526,0.00024154,66445.0,66444.0,1.72703113]
[1718588093726,0.00024154,66445.0,66444.0,1.63293306]
[1718588094376,0.00024154,66445.0,66444.0,1.34543306]
[1718588094811,0.00024154,66445.0,66444.0,1.31224186]
[1718588095014,0.00024154,66445.0,66444.0,1.34547144]
[1718588095851,0.00024154,66445.0,66444.0,1.39446383]
[1718588096054,0.00024154,66445.0,66444.0,1.34416383]
[1718588096255,0.00024154,66445.0,66444.0,1.34547229]
[1718588096598,0.00024154,66445.0,66444.0,1.04446729]
[1718588096806,0.00024154,66445.0,66444.0,1.04456683]
[1718588097018,0.00024154,66445.0,66444.0,1.34557183]
[1718588097490,0.00024154,66445.0,66444.0,1.43967002]
[1718588097973,0.00024154,66445.0,66444.0,1.34557183]
[1718588098167,0.00024154,66445.0,66444.0,1.30046562]
[1718588098466,0.00024154,66445.0,66444.0,1.43966958]
[1718588099516,0.00024154,66445.0,66444.0,1.39456343]
[1718588100360,0.00024154,66445.0,66444.0,1.13866372]
[1718588100772,0.00024154,66445.0,66444.0,1.43966872]
[1718588101204,0.00024154,66445.0,66444.0,1.38936872]
[1718588101408,0.00024154,66445.0,66444.0,1.13866372]
[1718588101608,0.00024154,66445.0,66444.0,1.43966872]
[1718588103206,0.00024154,66445.0,66444.0,1.13866372]
[1718588103855,0.00024154,66445.0,66444.0,0.6266756]
[1718588104051,0.28124154,66445.0,66444.0,0.74225343]
[1718588104217,0.28124154,66445.0,66444.0,0.79255343]
[1718588104399,0.28124154,66445.0,66444.0,1.09355843]
[1718588105739,0.00024154,66445.0,66444.0,1.09355843]
[1718588108241,0.00024154,66445.0,66444.0,1.39456343]
[1718588108792,0.00024154,66445.0,66444.0,1.43966872]
[1718588109107,0.00024154,66445.0,66444.0,1.33408231]
[1718588109252,0.00024154,66445.0,66444.0,0.9389795]
[1718588109460,0.00024154,66445.0,66444.0,1.09356268]
[1718588110080,0.00024154,66445.0,66444.0,1.06940841]
[1718588110498,0.00024154,66445.0,66444.0,1.06880257]
[1718588111535,0.00024154,66445.0,66444.0,0.97470051]
[1718588111731,0.00024154,66445.0,66444.0,0.96451939]
[1718588111947,0.22784154,66445.0,66444.0,0.34537802]
[1718588112172,0.39626042,66445.0,66444.0,0.34537802]
[1718588112379,0.39626042,66445.0,66444.0,0.39567802]
[1718588112578,0.39626042,66445.0,66444.0,0.36376827]
[1718588112762,0.39626042,66445.0,66444.0,0.40556262]
[1718588112967,0.39626042,66445.0,66444.0,0.40558901]
[1718588113327,0.39626042,66445.0,66444.0,0.41937817]
[1718588113579,0.39626042,66445.0,66444.0,0.36376827]
[1718588114047,0.39626042,66445.0,66444.0,0.31346827]
[1718588114248,0.39626042,66445.0,66444.0,0.36376827]
[1718588115252,0.39626042,66445.0,66444.0,0.31346827]
[1718588115381,0.39626042,66445.0,66444.0,0.36376827]
[1718588115594,0.39626042,66445.0,66444.0,0.36765032]
[1718588116597,0.38644154,66445.0,66444.0,0.36765032]
[1718588116797,0.28644154,66445.0,66444.0,0.42118737]
[1718588117209,0.38644154,66445.0,66444.0,0.42118737]
[1718588117363,0.28644154,66445.0,66444.0,0.42118737]
[1718588121405,0.28644154,66445.0,66444.0,0.37088737]
[1718588121575,0.28644154,66445.0,66444.0,0.42118737]
[1718588122362,0.28644154,66445.0,66444.0,0.46307025]
[1718588122770,0.38644154,66445.0,66444.0,0.41277025]
[1718588122986,0.38644154,66445.0,66444.0,0.46307025]
[1718588123385,0.38644154,66445.0,66444.0,0.42118737]
[1718588124026,0.28644154,66445.0,66444.0,0.42118737]
[1718588125491,0.28644154,66445.0,66444.0,0.37088737]
[1718588125744,0.39626042,66445.0,66444.0,0.31735032]
[1718588125984,0.39626042,66445.0,66444.0,0.36765032]
[1718588125985,0.28644154,66445.0,66444.0,0.36765032]
[1718588126317,0.28644154,66445.0,66444.0,0.40960817]
[1718588126532,0.28644154,66445.0,66444.0,0.40960821]
[1718588126729,0.38644154,66445.0,66444.0,0.35930821]
[1718588126924,0.38644154,66445.0,66444.0,0.50595046]
[1718588127241,0.28644154,66445.0,66444.0,0.50595046]
[1718588127614,0.38644154,66445.0,66444.0,0.50595046]
[1718588128019,0.38644154,66445.0,66444.0,0.50593963]
[1718588128220,0.28644154,66445.0,66444.0,0.50593963]
[1718588129025,0.38644154,66445.0,66444.0,0.50593963]
[1718588129418,0.28644154,66445.0,66444.0,0.50593963]
[1718588129761,0.28644154,66445.0,66444.0,0.38104505]
[1718588129962,0.28644154,66445.0,66444.0,0.50593671]
[1718588130389,0.12784154,66445.0,66444.0,0.50593671]
[1718588130804,0.00024154,66445.0,66444.0,0.50593671]
[1718588131626,0.00457361,66445.0,66444.0,0.50593671]
[1718588133394,0.00457361,66445.0,66444.0,0.66661983]
[1718588133562,0.00457361,66445.0,66444.0,0.96762483]
[1718588133768,0.00457361,66445.0,66444.0,0.66661983]
[1718588133979,0.00457361,66445.0,66444.0,0.65643871]
[1718588134417,0.00457361,66445.0,66444.0,0.65638433]
[1718588136621,0.00457361,66445.0,66444.0,0.66656545]
[1718588136848,0.00024154,66445.0,66444.0,0.96757045]
[1718588137742,0.00024154,66445.0,66444.0,0.96756826]
[1718588138275,0.00024154,66445.0,66444.0,1.56957826]
[1718588138477,0.00024154,66445.0,66444.0,1.26857326]
[1718588138922,0.00024154,66445.0,66444.0,1.55747326]
[1718588139704,0.00024154,66445.0,66444.0,1.20809214]
[1718588139906,0.00024154,66445.0,66444.0,1.25839214]
[1718588140015,0.00024154,66445.0,66444.0,1.26857326]
[1718588141186,0.00024154,66445.0,66444.0,1.20809214]
[1718588141387,0.00024154,66445.0,66444.0,1.26857326]
[1718588141626,0.00024154,66445.0,66444.0,1.25839214]
[1718588141843,0.00024154,66445.0,66444.0,1.26857326]
[1718588144589,0.00024154,66445.0,66444.0,1.56957826]
[1718588144813,0.00024154,66445.0,66444.0,1.41857326]
[1718588144990,0.00024154,66445.0,66444.0,1.11756826]
[1718588145344,0.00024154,66445.0,66444.0,1.41857326]
[1718588145688,0.00024154,66445.0,66444.0,1.11756826]
[1718588145892,0.00024154,66445.0,66444.0,1.53867326]
[1718588147132,0.00024154,66445.0,66444.0,1.53863029]
[1718588147532,0.00024154,66445.0,66444.0,1.53862608]
[1718588148833,0.00024154,66445.0,66444.0,1.54062105]
[1718588151177,0.00024154,66445.0,66444.0,1.53043993]
[1718588151378,0.00024154,66445.0,66444.0,1.54062105]
[1718588152423,0.00024154,66445.0,66444.0,1.41570977]
[1718588152627,0.00024154,66445.0,66444.0,1.54059525]
[1718588154667,0.00024154,66445.0,66444.0,1.06919025]
[1718588155004,0.00024154,66445.0,66444.0,1.11949025]
[1718588155164,0.00024154,66445.0,66444.0,0.86296688]
[1718588155351,0.00024154,66445.0,66444.0,0.41145988]
[1718588155571,0.00388959,66445.0,66444.0,0.41145988]
[1718588155774,0.00024154,66445.0,66444.0,0.41145988]
[1718588155998,0.00024154,66445.0,66444.0,0.56196188]
[1718588159201,0.00388959,66445.0,66444.0,0.56196188]
[1718588160178,0.00388959,66445.0,66444.0,1.164153]
[1718588160387,0.00024154,66445.0,66444.0,1.760958]
[1718588161145,0.00024154,66445.0,66444.0,1.459953]
[1718588161438,0.00024154,66445.0,66444.0,1.39947188]
[1718588161647,0.00024154,66445.0,66444.0,1.25055467]
[1718588161827,0.00024154,66445.0,66444.0,0.84934767]
[1718588162041,0.28804154,66445.0,66444.0,0.41145988]